fUST/lending_fUST_20240717
["ID","MTS","AMOUNT","RATE_DAILY","PERIOD"]
[332467317,1721211044024,-152.0,0.00022801,2]
[332467318,1721211044037,-362.80119484,0.00022845,2]
[332467319,1721211044048,-1032.65290716,0.0002289,3]
[332467320,1721211044058,-500.0,0.00022899,2]
[332467321,1721211044068,-2500.008,0.000229,2]
[332467322,1721211044078,-6385.69622306,0.00022941,2]
[332467323,1721211044088,-3044.76746098,0.00022941,2]
[332467324,1721211044097,-166.666666,0.00022944,2]
[332467325,1721211044108,-344.21763572,0.00022955,3]
[332467326,1721211044118,-3200.0,0.00022965,2]
[332467327,1721211044128,-425.448,0.00022965,2]
[332467328,1721211044138,-1000.0,0.00023,23]
[332467329,1721211044147,-5000.0,0.00023,2]
[332467330,1721211044158,-179.0,0.00023,2]
[332467331,1721211044169,-688.43527144,0.00023003,3]
[332467332,1721211044180,-385.9910749,0.00023007,2]
[332467333,1721211044189,-508.32165735,0.00023012,2]
[332467334,1721211044200,-2096.39,0.00023012,2]
[332467335,1721211044212,-2096.39,0.00023012,2]
[332467336,1721211044222,-325.45039169,0.00023013,2]
[332467337,1721211044232,-500.0,0.00023013,2]
[332467338,1721211044244,-500.0,0.00023013,2]
[332467339,1721211044253,-500.0,0.00023013,2]
[332467340,1721211044263,-500.0,0.00023013,2]
[332467341,1721211044275,-24755.13,0.00023013,2]
[332467342,1721211044292,-1429.26,0.00023013,2]
[332467343,1721211044304,-500.0,0.00023013,2]
[332467344,1721211044314,-3473.81,0.00023013,2]
[332467345,1721211044323,-500.0,0.00023013,2]
[332467346,1721211044333,-500.0,0.00023013,2]
[332467347,1721211044342,-500.0,0.00023013,2]
[332467348,1721211044354,-2310.96,0.00023013,2]
[332467349,1721211044364,-858.89,0.00023013,2]
[332467350,1721211044374,-500.0,0.00023013,2]
[332467351,1721211044383,-500.0,0.00023013,2]
[332467352,1721211044393,-2000.0,0.00023013,2]
[332467353,1721211044403,-500.0,0.00023013,2]
[332467354,1721211044413,-500.0,0.00023013,2]
[332467355,1721211044423,-500.0,0.00023013,2]
[332467356,1721211044432,-500.0,0.00023013,2]
[332467357,1721211044442,-476.58,0.00023013,2]
[332467358,1721211044453,-597.96,0.00023013,2]
[332467359,1721211044463,-500.0,0.00023013,2]
[332467360,1721211044473,-500.0,0.00023013,2]
[332467361,1721211044483,-500.0,0.00023013,2]
[332467362,1721211044493,-500.0,0.00023013,2]
[332467363,1721211044502,-3878.75,0.00023013,2]
[332467364,1721211044512,-500.0,0.00023013,2]
[332467365,1721211044522,-500.0,0.00023013,2]
[332467366,1721211044532,-500.0,0.00023013,2]
[332467367,1721211044541,-780.32,0.00023013,2]
[332467368,1721211044551,-508.04773477,0.00023013,2]
[332467369,1721211044560,-500.0,0.00023013,2]
[332467370,1721211044570,-500.0,0.00023013,2]
[332467371,1721211044580,-702.82,0.00023013,2]
[332467372,1721211044592,-500.0,0.00023013,2]
[332467373,1721211044603,-500.0,0.00023013,2]
[332467374,1721211044613,-500.0,0.00023013,2]
[332467375,1721211044622,-500.0,0.00023013,2]
[332467376,1721211044632,-11401.43,0.00023013,2]
[332467377,1721211044642,-500.0,0.00023013,2]
[332467378,1721211044652,-500.0,0.00023013,2]
[332467379,1721211044661,-865.56,0.00023013,2]
[332467380,1721211044672,-500.0,0.00023013,2]
[332467381,1721211044681,-2185.06,0.00023013,2]
[332467382,1721211044691,-3000.0,0.00023013,2]
[332467383,1721211044701,-2368.34,0.00023013,2]
[332467384,1721211044711,-500.0,0.00023013,2]
[332467385,1721211044720,-476.58,0.00023013,2]
[332467386,1721211044730,-500.0,0.00023013,2]
[332467387,1721211044743,-500.0,0.00023013,2]
[332467388,1721211044754,-707.33,0.00023013,2]
[332467389,1721211044764,-200.0,0.00023013,2]
[332467390,1721211044775,-500.0,0.00023013,2]
[332467391,1721211044786,-500.0,0.00023013,2]
[332467392,1721211044797,-500.0,0.00023013,2]
[332467393,1721211044807,-500.0,0.00023013,2]
[332467394,1721211044818,-500.0,0.00023013,2]
[332467395,1721211044828,-500.0,0.00023013,2]
[332467396,1721211044837,-500.0,0.00023013,2]
[332467397,1721211044847,-500.0,0.00023013,2]
[332467398,1721211044857,-500.0,0.00023013,2]
[332467399,1721211044867,-500.0,0.00023013,2]
[332467400,1721211044877,-500.0,0.00023013,2]
[332467401,1721211044888,-612.88,0.00023013,2]
[332467402,1721211044900,-500.0,0.00023013,2]
[332467403,1721211044911,-715.26,0.00023013,2]
[332467404,1721211044922,-159.0,0.00023014,2]
[332467405,1721211044935,-293.6566525,0.00023041,2]
[332467406,1721211044947,-293.6566525,0.00023041,2]
[332467407,1721211044961,-293.6566525,0.00023041,2]
[332467408,1721211044978,-293.6566525,0.00023041,2]
[332467409,1721211044991,-293.6566525,0.00023041,2]
[332467410,1721211045001,-293.6566525,0.00023041,2]
[332467411,1721211045219,-293.6566525,0.00023041,2]
[332467412,1721211045231,-293.6566525,0.00023041,2]
[332467413,1721211045241,-293.6566525,0.00023041,2]
[332467414,1721211045250,-293.6566525,0.00023041,2]
[332467415,1721211045260,-293.6566525,0.00023041,2]
[332467416,1721211045269,-293.6566525,0.00023041,2]
[332467417,1721211045279,-293.6566525,0.00023041,2]
[332467418,1721211045288,-292.4316091,0.00023041,2]
[332467419,1721211045298,-151.0,0.00023088,2]
[332467420,1721211045307,-362.80119484,0.00023187,2]
[332467421,1721211045317,-374.0,0.000232,2]
[332467422,1721211045327,-153.0,0.00023205,2]
[332467423,1721211045337,-153.0,0.00023205,2]
[332467424,1721211045346,-153.0,0.00023205,2]
[332467425,1721211045355,-153.0,0.00023205,2]
[332467426,1721211045365,-153.0,0.00023205,2]
[332467427,1721211045375,-153.0,0.00023205,2]
[332467428,1721211045387,-153.0,0.00023205,2]
[332467429,1721211045400,-153.0,0.00023205,2]
[332467430,1721211045410,-153.0,0.00023205,2]
[332467431,1721211045422,-153.0,0.00023205,2]
[332467432,1721211045432,-153.0,0.00023205,2]
[332467433,1721211045443,-153.0,0.00023205,2]
[332467434,1721211045455,-153.0,0.00023205,2]
[332467435,1721211045467,-153.0,0.00023205,2]
[332467436,1721211045479,-153.0,0.00023205,2]
[332467437,1721211045491,-153.0,0.00023205,2]
[332467438,1721211045502,-153.0,0.00023205,2]
[332467439,1721211045512,-153.0,0.00023205,2]
[332467440,1721211045522,-153.0,0.00023205,2]
[332467441,1721211045532,-153.0,0.00023205,2]
[332467442,1721211045542,-153.0,0.00023205,2]
[332467443,1721211045552,-153.0,0.00023205,2]
[332467444,1721211045563,-153.0,0.00023205,2]
[332467445,1721211045574,-153.0,0.00023205,2]
[332467446,1721211045584,-153.0,0.00023205,2]
[332467447,1721211045595,-153.0,0.00023205,2]
[332467448,1721211045606,-153.0,0.00023205,2]
[332467449,1721211045618,-153.0,0.00023205,2]
[332467450,1721211045630,-153.0,0.00023205,2]
[332467451,1721211045640,-153.0,0.00023205,2]
[332467452,1721211045650,-153.0,0.00023205,2]
[332467453,1721211045660,-153.0,0.00023205,2]
[332467454,1721211045672,-153.0,0.00023205,2]
[332467455,1721211045683,-153.0,0.00023205,2]
[332467456,1721211045695,-153.0,0.00023205,2]
[332467457,1721211045706,-153.0,0.00023205,2]
[332467458,1721211045716,-153.0,0.00023205,2]
[332467461,1721211045726,-153.0,0.00023205,2]
[332467463,1721211045737,-153.0,0.00023205,2]
[332467466,1721211045747,-153.0,0.00023205,2]
[332467468,1721211045757,-153.0,0.00023205,2]
[332467469,1721211045767,-153.0,0.00023205,2]
[332467470,1721211045777,-153.0,0.00023205,2]
[332467471,1721211045788,-150.77383924,0.00023235,2]
[332467472,1721211045799,-620.36656565,0.0002324,2]
[332467473,1721211045811,-1721.0881786,0.00023277,3]
[332467474,1721211045822,-2096.39,0.00023286,2]
[332467475,1721211045832,-2096.39,0.00023286,2]
[332467476,1721211045843,-2096.39,0.00023286,2]
[332467477,1721211045853,-2096.39,0.00023286,2]
[332467478,1721211045865,-2096.39,0.00023286,2]
[332467479,1721211045875,-2096.39,0.00023286,2]
[332467480,1721211045886,-20.29445773,0.00023287,2]
[332467481,1721211045897,-185.33483968,0.00023287,2]
[332467482,1721211045908,-500.0,0.00023287,2]
[332467483,1721211045918,-500.0,0.00023287,2]
[332467484,1721211045928,-729.97,0.00023287,2]
[332467485,1721211045938,-500.0,0.00023287,2]
[332467486,1721211045948,-2448.75,0.00023287,2]
[332467487,1721211045960,-657.29,0.00023287,2]
[332467488,1721211045970,-621.51,0.00023287,2]
[332467489,1721211045980,-529.22,0.00023287,2]
[332467490,1721211045991,-500.0,0.00023287,2]
[332467491,1721211046001,-500.0,0.00023287,2]
[332467492,1721211046011,-188.04,0.00023287,2]
[332467493,1721211046021,-500.0,0.00023287,2]
[332467494,1721211046032,-500.0,0.00023287,2]
[332467495,1721211046042,-500.0,0.00023287,2]
[332467496,1721211046052,-241.35,0.00023287,2]
[332467497,1721211046061,-646.51,0.00023287,2]
[332467498,1721211046071,-500.0,0.00023287,2]
[332467499,1721211046080,-500.0,0.00023287,2]
[332467500,1721211046091,-1010.93,0.00023287,2]
[332467501,1721211046100,-500.0,0.00023287,2]
[332467502,1721211046110,-500.0,0.00023287,2]
[332467503,1721211046120,-500.0,0.00023287,2]
[332467504,1721211046131,-500.0,0.00023287,2]
[332467505,1721211046141,-500.0,0.00023287,2]
[332467506,1721211046151,-500.0,0.00023287,2]
[332467507,1721211046161,-612.80054284,0.00023287,2]
[332467508,1721211046171,-500.0,0.00023287,2]
[332467509,1721211046181,-437.89,0.00023287,2]
[332467510,1721211046191,-500.0,0.00023287,2]
[332467511,1721211046200,-500.0,0.00023287,2]
[332467512,1721211046210,-630.68,0.00023287,2]
[332467513,1721211046220,-500.0,0.00023287,2]
[332467514,1721211046230,-500.0,0.00023287,2]
[332467515,1721211046241,-500.0,0.00023287,2]
[332467516,1721211046251,-166.64,0.00023287,2]
[332467517,1721211046261,-500.0,0.00023287,2]
[332467518,1721211046271,-411.7,0.00023287,2]
[332467519,1721211046281,-367.7,0.00023287,2]
[332467520,1721211046291,-500.0,0.00023287,2]
[332467521,1721211046301,-500.0,0.00023287,2]
[332467522,1721211046310,-500.0,0.00023287,2]
[332467523,1721211046320,-500.0,0.00023287,2]
[332467524,1721211046329,-500.0,0.00023287,2]
[332467525,1721211046339,-500.0,0.00023287,2]
[332467526,1721211046348,-449.28067694,0.00023287,2]
[332467527,1721211046359,-500.0,0.00023287,2]
[332467528,1721211046370,-500.0,0.00023287,2]
[332467529,1721211046381,-500.0,0.00023287,2]
[332467530,1721211046391,-427.23309789,0.00023287,2]
[332467531,1721211046404,-374.85,0.00023287,2]
[332467532,1721211046415,-500.0,0.00023287,2]
[332467533,1721211046424,-648.18,0.00023287,2]
[332467534,1721211046436,-500.0,0.00023287,2]
[332467535,1721211046447,-588.64,0.00023287,2]
[332467536,1721211046458,-225.40670928,0.00023287,2]
[332467537,1721211046468,-500.0,0.00023287,2]
[332467538,1721211046478,-157.69,0.00023287,2]
[332467539,1721211046487,-500.0,0.00023287,2]
[332467540,1721211046499,-637.0174462,0.00023287,2]
[332467541,1721211046509,-500.0,0.00023287,2]
[332467542,1721211046518,-500.0,0.00023287,2]
[332467544,1721211046529,-500.0,0.00023287,2]
[332467545,1721211046538,-500.0,0.00023287,2]
[332467546,1721211046548,-500.0,0.00023287,2]
[332467547,1721211046557,-500.0,0.00023287,2]
[332467548,1721211046567,-500.0,0.00023287,2]
[332467550,1721211046576,-500.0,0.00023287,2]
[332467551,1721211046586,-500.0,0.00023287,2]
[332467552,1721211046597,-500.0,0.00023287,2]
[332467553,1721211046609,-500.0,0.00023287,2]
[332467554,1721211046618,-299.25,0.00023287,2]
[332467555,1721211046628,-500.0,0.00023287,2]
[332467556,1721211046638,-493.73310187,0.00023287,2]
[332467557,1721211046647,-248.95,0.00023287,2]
[332467558,1721211046658,-332.41,0.00023287,2]
[332467559,1721211046668,-500.0,0.00023287,2]
[332467560,1721211046678,-500.0,0.00023287,2]
[332467561,1721211046688,-500.0,0.00023287,2]
[332467562,1721211046698,-500.0,0.00023287,2]
[332467563,1721211046708,-500.0,0.00023287,2]
[332467564,1721211046720,-500.0,0.00023287,2]
[332467565,1721211046732,-645.43594522,0.00023287,2]
[332467566,1721211046743,-542.35,0.00023287,2]
[332467567,1721211046752,-500.0,0.00023287,2]
[332467568,1721211046762,-500.0,0.00023287,2]
[332467569,1721211046771,-529.9337123,0.00023287,2]
[332467570,1721211046781,-500.0,0.00023287,2]
[332467571,1721211046790,-500.0,0.00023287,2]
[332467572,1721211046799,-500.0,0.00023287,2]
[332467573,1721211046809,-500.0,0.00023287,2]
[332467574,1721211046818,-519.27342515,0.00023287,2]
[332467575,1721211046827,-528.84,0.00023287,2]
[332467576,1721211046838,-500.0,0.00023287,2]
[332467577,1721211046848,-500.0,0.00023287,2]
[332467578,1721211046858,-623.28,0.00023287,2]
[332467579,1721211046867,-500.0,0.00023287,2]
[332467580,1721211046876,-500.0,0.00023287,2]
[332467581,1721211046885,-500.0,0.00023287,2]
[332467582,1721211046895,-150.15546556,0.00023287,2]
[332467583,1721211046904,-4425.24,0.00023287,2]
[332467584,1721211046914,-2280.85,0.00023287,2]
[332467585,1721211046923,-318.9664829,0.00023287,2]
[332467586,1721211046933,-554.38633197,0.00023287,2]
[332467587,1721211046943,-409.84796999,0.00023287,2]
[332467588,1721211046957,-292.51195363,0.00023287,2]
[332467589,1721211046967,-507.6813404,0.00023287,2]
[332467590,1721211046977,-508.22486119,0.00023287,2]
[332467591,1721211046986,-500.0,0.00023287,2]
[332467592,1721211046996,-508.7504317,0.00023287,2]
[332467593,1721211047007,-500.0,0.00023287,2]
[332467594,1721211047028,-500.0,0.00023287,2]
[332467595,1721211047049,-500.0,0.00023287,2]
[332467596,1721211047070,-559.90055211,0.00023287,2]
[332467597,1721211047091,-639.0320691,0.00023287,2]
[332467598,1721211047112,-500.0,0.00023287,2]
[332467599,1721211047134,-500.0,0.00023287,2]
[332467600,1721211047155,-505.11244651,0.00023287,2]
[332467601,1721211047177,-512.05904178,0.00023287,2]
[332467602,1721211047186,-511.97198932,0.00023287,2]
[332467603,1721211047195,-500.0,0.00023287,2]
[332467604,1721211047204,-500.0,0.00023287,2]
[332467605,1721211047213,-510.73615363,0.00023287,2]
[332467606,1721211047222,-640.03633266,0.00023287,2]
[332467607,1721211047232,-506.4184994,0.00023287,2]
[332467608,1721211047242,-504.00606277,0.00023287,2]
[332467609,1721211047251,-500.0,0.00023287,2]
[332467610,1721211047260,-508.97562135,0.00023287,2]
[332467611,1721211047270,-500.0,0.00023287,2]
[332467612,1721211047280,-500.0,0.00023287,2]
[332467613,1721211047289,-502.69318427,0.00023287,2]
[332467614,1721211047300,-510.75854143,0.00023287,2]
[332467615,1721211047310,-508.878133,0.00023287,2]
[332467616,1721211047319,-500.0,0.00023287,2]
[332467617,1721211047329,-506.37457624,0.00023287,2]
[332467618,1721211047338,-500.0,0.00023287,2]
[332467619,1721211047348,-347.92,0.00023287,2]
[332467620,1721211047357,-500.0,0.00023287,2]
[332467621,1721211047367,-500.0,0.00023287,2]
[332467622,1721211047376,-2106.49,0.00023287,2]
[332467623,1721211047386,-174.51,0.00023287,2]
[332467624,1721211047395,-500.0,0.00023287,2]
[332467625,1721211047404,-527.05,0.00023287,2]
[332467626,1721211047413,-575.04,0.00023287,2]
[332467627,1721211047423,-500.0,0.00023287,2]
[332467628,1721211047432,-500.0,0.00023287,2]
[332467629,1721211047441,-500.0,0.00023287,2]
[332467630,1721211047451,-500.0,0.00023287,2]
[332467631,1721211047461,-500.0,0.00023287,2]
[332467632,1721211047471,-500.0,0.00023287,2]
[332467633,1721211047480,-423.12,0.00023287,2]
[332467634,1721211047490,-291.6,0.00023287,2]
[332467635,1721211047501,-500.0,0.00023287,2]
[332467636,1721211047510,-2237.19,0.00023287,2]
[332467637,1721211047523,-500.0,0.00023287,2]
[332467638,1721211047532,-500.0,0.00023287,2]
[332467639,1721211047542,-177.5,0.00023287,2]
[332467640,1721211047551,-500.0,0.00023287,2]
[332467641,1721211047560,-500.0,0.00023287,2]
[332467642,1721211047570,-500.0,0.00023287,2]
[332467643,1721211047579,-500.0,0.00023287,2]
[332467644,1721211047589,-500.0,0.00023287,2]
[332467645,1721211047600,-500.0,0.00023287,2]
[332467646,1721211047610,-500.0,0.00023287,2]
[332467647,1721211047620,-565.88,0.00023287,2]
[332467648,1721211047629,-500.0,0.00023287,2]
[332467649,1721211047638,-500.0,0.00023287,2]
[332467650,1721211047647,-500.0,0.00023287,2]
[332467651,1721211047657,-500.0,0.00023287,2]
[332467652,1721211047666,-500.0,0.00023287,2]
[332467653,1721211047676,-500.0,0.00023287,2]
[332467654,1721211047685,-500.0,0.00023287,2]
[332467655,1721211047695,-500.0,0.00023287,2]
[332467656,1721211047704,-500.0,0.00023287,2]
[332467657,1721211047715,-306.47600633,0.00023287,2]
[332467658,1721211047727,-500.0,0.00023287,2]
[332467659,1721211047738,-500.0,0.00023287,2]
[332467660,1721211047789,-500.0,0.00023287,2]
[332467661,1721211047798,-500.0,0.00023287,2]
[332467662,1721211047807,-526.67258176,0.00023287,2]
[332467663,1721211047817,-500.0,0.00023287,2]
[332467664,1721211047826,-769.18,0.00023287,2]
[332467665,1721211047835,-500.0,0.00023287,2]
[332467666,1721211047844,-500.0,0.00023287,2]
[332467667,1721211047853,-937.8,0.00023287,2]
[332467668,1721211047862,-500.0,0.00023287,2]
[332467669,1721211047871,-539.65,0.00023287,2]
[332467670,1721211047880,-500.0,0.00023287,2]
[332467671,1721211047890,-500.0,0.00023287,2]
[332467672,1721211047899,-500.0,0.00023287,2]
[332467673,1721211047909,-500.0,0.00023287,2]
[332467674,1721211047919,-599.18475082,0.00023287,2]
[332467675,1721211047930,-260.19265017,0.00023287,2]
[332467676,1721211047940,-500.0,0.00023287,2]
[332467677,1721211047953,-500.0,0.00023287,2]
[332467678,1721211047966,-500.0,0.00023287,2]
[332467679,1721211047976,-500.0,0.00023287,2]
[332467680,1721211047987,-500.0,0.00023287,2]
[332467681,1721211047999,-500.0,0.00023287,2]
[332467682,1721211048008,-500.0,0.00023287,2]
[332467683,1721211048019,-500.0,0.00023287,2]
[332467684,1721211048029,-500.0,0.00023287,2]
[332467685,1721211048039,-308.39,0.00023287,2]
[332467686,1721211048048,-500.0,0.00023287,2]
[332467687,1721211048057,-312.0,0.00023287,2]
[332467688,1721211048067,-500.0,0.00023287,2]
[332467689,1721211048077,-353.22,0.00023287,2]
[332467690,1721211048087,-736.18,0.00023287,2]
[332467691,1721211048097,-500.0,0.00023287,2]
[332467692,1721211048106,-548.6,0.00023287,2]
[332467693,1721211048115,-500.0,0.00023287,2]
[332467694,1721211048126,-500.0,0.00023287,2]
[332467695,1721211048135,-500.0,0.00023287,2]
[332467696,1721211048144,-500.0,0.00023287,2]
[332467697,1721211048154,-500.0,0.00023287,2]
[332467698,1721211048163,-500.0,0.00023287,2]
[332467699,1721211048173,-500.0,0.00023287,2]
[332467700,1721211048182,-500.0,0.00023287,2]
[332467701,1721211048192,-378.94033317,0.00023287,2]
[332467702,1721211048202,-500.0,0.00023287,2]
[332467703,1721211048211,-500.0,0.00023287,2]
[332467704,1721211048220,-500.0,0.00023287,2]
[332467705,1721211048229,-500.0,0.00023287,2]
[332467706,1721211048239,-500.0,0.00023287,2]
[332467707,1721211048249,-516.14284265,0.00023287,2]
[332467708,1721211048258,-500.0,0.00023287,2]
[332467709,1721211048268,-711.61,0.00023287,2]
[332467710,1721211048277,-345.54289741,0.00023287,2]
[332467711,1721211048286,-191.93,0.00023287,2]
[332467712,1721211048295,-187.96718893,0.00023287,2]
[332467713,1721211048305,-500.0,0.00023287,2]
[332467714,1721211048314,-687.19,0.00023287,2]
[332467715,1721211048334,-500.0,0.00023287,2]
[332467716,1721211048344,-500.0,0.00023287,2]
[332467717,1721211048354,-500.0,0.00023287,2]
[332467718,1721211048364,-495.86811673,0.00023287,2]
[332467719,1721211048374,-1287.17,0.00023287,2]
[332467720,1721211048383,-500.0,0.00023287,2]
[332467721,1721211048392,-500.0,0.00023287,2]
[332467722,1721211048402,-527.72873348,0.00023287,2]
[332467723,1721211048412,-500.0,0.00023287,2]
[332467724,1721211048422,-653.86,0.00023287,2]
[332467725,1721211048431,-500.0,0.00023287,2]
[332467726,1721211048440,-500.0,0.00023287,2]
[332467727,1721211048450,-500.0,0.00023287,2]
[332467728,1721211048459,-500.0,0.00023287,2]
[332467729,1721211048470,-500.0,0.00023287,2]
[332467730,1721211048479,-500.0,0.00023287,2]
[332467731,1721211048488,-500.0,0.00023287,2]
[332467732,1721211048499,-500.0,0.00023287,2]
[332467733,1721211048509,-500.0,0.00023287,2]
[332467734,1721211048518,-500.0,0.00023287,2]
[332467735,1721211048528,-500.0,0.00023287,2]
[332467736,1721211048539,-500.0,0.00023287,2]
[332467737,1721211048548,-500.0,0.00023287,2]
[332467738,1721211048559,-948.07,0.00023287,2]
[332467739,1721211048569,-500.0,0.00023287,2]
[332467740,1721211048579,-695.04,0.00023287,2]
[332467741,1721211048590,-500.0,0.00023287,2]
[332467742,1721211048600,-500.0,0.00023287,2]
[332467743,1721211048610,-1106.12,0.00023287,2]
[332467744,1721211048620,-776.07,0.00023287,2]
[332467745,1721211048630,-500.0,0.00023287,2]
[332467746,1721211048641,-677.81,0.00023287,2]
[332467747,1721211048651,-500.0,0.00023287,2]
[332467748,1721211048661,-500.0,0.00023287,2]
[332467749,1721211048671,-580.17,0.00023287,2]
[332467750,1721211048680,-914.92,0.00023287,2]
[332467751,1721211048690,-601.25453989,0.00023287,2]
[332467752,1721211048702,-500.0,0.00023287,2]
[332467753,1721211048712,-585.08,0.00023287,2]
[332467754,1721211048722,-500.0,0.00023287,2]
[332467755,1721211048731,-500.0,0.00023287,2]
[332467756,1721211048742,-207.12232712,0.00023287,2]
[332467757,1721211048751,-500.0,0.00023287,2]
[332467758,1721211048762,-500.0,0.00023287,2]
[332467759,1721211048771,-500.0,0.00023287,2]
[332467760,1721211048781,-500.0,0.00023287,2]
[332467761,1721211048790,-500.0,0.00023287,2]
[332467762,1721211048800,-500.0,0.00023287,2]
[332467763,1721211048809,-500.0,0.00023287,2]
[332467764,1721211048819,-500.0,0.00023287,2]
[332467765,1721211048829,-500.0,0.00023287,2]
[332467766,1721211048839,-500.0,0.00023287,2]
[332467767,1721211048848,-2576.65,0.00023287,2]
[332467768,1721211048858,-443.5020477,0.00023287,2]
[332467769,1721211048868,-500.0,0.00023287,2]
[332467770,1721211048878,-500.0,0.00023287,2]
[332467771,1721211048887,-500.0,0.00023287,2]
[332467772,1721211048897,-500.0,0.00023287,2]
[332467773,1721211048906,-500.0,0.00023287,2]
[332467774,1721211048915,-500.0,0.00023287,2]
[332467775,1721211048925,-500.0,0.00023287,2]
[332467776,1721211048935,-24755.13,0.00023287,2]
[332467777,1721211048944,-1429.26,0.00023287,2]
[332467778,1721211048957,-500.0,0.00023287,2]
[332467779,1721211048966,-3473.81,0.00023287,2]
[332467780,1721211048977,-500.0,0.00023287,2]
[332467781,1721211048987,-500.0,0.00023287,2]
[332467782,1721211048999,-500.0,0.00023287,2]
[332467783,1721211049008,-2310.96,0.00023287,2]
[332467784,1721211049018,-858.89,0.00023287,2]
[332467785,1721211049027,-500.0,0.00023287,2]
[332467786,1721211049038,-500.0,0.00023287,2]
[332467787,1721211049049,-2000.0,0.00023287,2]
[332467788,1721211049058,-500.0,0.00023287,2]
[332467789,1721211049067,-500.0,0.00023287,2]
[332467790,1721211049077,-500.0,0.00023287,2]
[332467791,1721211049086,-500.0,0.00023287,2]
[332467792,1721211049096,-597.96,0.00023287,2]
[332467793,1721211049106,-500.0,0.00023287,2]
[332467794,1721211049115,-500.0,0.00023287,2]
[332467795,1721211049125,-500.0,0.00023287,2]
[332467796,1721211049135,-500.0,0.00023287,2]
[332467797,1721211049144,-3878.75,0.00023287,2]
[332467798,1721211049154,-592.12,0.00023287,2]
[332467799,1721211049163,-608.38,0.00023287,2]
[332467800,1721211049176,-500.0,0.00023287,2]
[332467801,1721211049186,-780.32,0.00023287,2]
[332467802,1721211049195,-500.0,0.00023287,2]
[332467803,1721211049205,-500.0,0.00023287,2]
[332467804,1721211049215,-702.82,0.00023287,2]
[332467805,1721211049225,-500.0,0.00023287,2]
[332467806,1721211049237,-500.0,0.00023287,2]
[332467807,1721211049248,-500.0,0.00023287,2]
[332467808,1721211049258,-500.0,0.00023287,2]
[332467809,1721211049269,-11401.43,0.00023287,2]
[332467810,1721211049280,-500.0,0.00023287,2]
[332467811,1721211049291,-500.0,0.00023287,2]
[332467812,1721211049302,-865.56,0.00023287,2]
[332467813,1721211049312,-500.0,0.00023287,2]
[332467814,1721211049322,-2185.06,0.00023287,2]
[332467815,1721211049332,-225.0314976,0.00023287,2]
[332467816,1721211049342,-2368.34,0.00023287,2]
[332467817,1721211049352,-500.0,0.00023287,2]
[332467818,1721211049362,-500.0,0.00023287,2]
[332467819,1721211049372,-500.0,0.00023287,2]
[332467820,1721211049382,-707.33,0.00023287,2]
[332467821,1721211049392,-200.0,0.00023287,2]
[332467822,1721211049402,-500.0,0.00023287,2]
[332467823,1721211049412,-500.0,0.00023287,2]
[332467824,1721211049422,-342.92,0.00023287,2]